bitfinex/quotes_SOLUSD_20240604
["timestamp","ask_amount","ask_price","bid_price","bid_amount"]
[1717534813318,6.68,169.53,169.51,2.1827]
[1717534813621,6.68,169.53,169.5,2.1828]
[1717534813825,6.68,169.54,169.5,2.1828]
[1717534815126,2.1823,169.55,169.51,2.1827]
[1717534815422,6.68,169.54,169.51,2.1827]
[1717534816918,6.68,169.54,169.5,2.1828]
[1717534817235,6.68,169.55,169.52,2.1826]
[1717534817465,13.0915,169.58,169.5,4.3657]
[1717534817466,75.1599,169.6,169.51,4.3653]
[1717534817738,13.76291378,169.59,169.54,4.3647]
[1717534817907,19.18000977,169.6,169.55,2.1821]
[1717534818108,6.68,169.59,169.54,4.3647]
[1717534818303,6.68,169.59,169.56,2.182]
[1717534818505,6.68,169.58,169.55,2.1821]
[1717534820156,51.5981,169.63,169.57,2.1819]
[1717534820358,16.99577461,169.62,169.57,2.1819]
[1717534820643,16.99577461,169.62,169.55,8.7288]
[1717534820644,6.68,169.61,169.58,2.1818]
[1717534823232,2.1814,169.62,169.58,2.1818]
[1717534823534,6.68,169.61,169.58,2.1818]
[1717534824539,8.8614,169.62,169.58,2.1818]
[1717534825348,6.68,169.6,169.57,2.1819]
[1717534825815,6.68,169.58,169.56,2.182]
[1717534826015,6.68,169.57,169.55,2.1821]
[1717534826216,6.68,169.56,169.55,2.1821]
[1717534826413,6.68,169.56,169.54,2.1823]
[1717534826712,8.8622,169.55,169.51,2.1827]
[1717534827021,4.364,169.57,169.48,10.9155]
[1717534827022,6.68,169.52,169.5,2.1828]
[1717534827662,6.68,169.51,169.49,2.1829]
[1717534828647,6.68,169.51,169.5,2.1828]
[1717534829317,6.68,169.51,169.49,2.1829]
[1717534829520,6.68,169.51,169.5,2.1828]
[1717534831148,6.68,169.51,169.49,2.1829]
[1717534832561,6.68,169.51,169.47,10.9161]
[1717534832734,6.68,169.5,169.48,2.1831]
[1717534833265,6.68,169.5,169.49,2.183]
[1717534833643,6.68,169.5,169.48,2.183]
[1717534833961,6.68,169.49,169.47,2.1831]
[1717534834137,6.68,169.49,169.48,2.1831]
[1717534835658,6.68,169.5,169.49,2.1829]
[1717534836672,6.68,169.51,169.5,2.1828]
[1717534837044,6.68,169.51,169.49,2.1829]
[1717534840649,6.68,169.51,169.48,2.183]
[1717534840949,6.68,169.49,169.47,2.1832]
[1717534841353,6.68,169.49,169.45,37.33782006]
[1717534841755,6.68,169.49,169.47,2.1832]
[1717534842061,6.68,169.49,169.48,2.1831]
[1717534842676,6.68,169.49,169.47,2.1831]
[1717534842879,6.68,169.52,169.47,2.1831]
[1717534843164,6.68,169.48,169.46,2.1833]
[1717534843747,6.68,169.48,169.47,2.1832]
[1717534845260,8.466,169.51,169.47,2.1832]
[1717534845566,2.1828,169.5,169.46,2.1833]
[1717534846069,8.466,169.51,169.47,2.1832]
[1717534850564,11.0825,169.53,169.49,2.1829]
[1717534850565,2.1826,169.53,169.49,2.1829]
[1717534850769,6.68,169.51,169.49,2.1829]
[1717534851143,6.68,169.5,169.47,2.1832]
[1717534851344,6.68,169.5,169.46,2.1833]
[1717534851576,6.68,169.49,169.47,2.1832]
[1717534851866,6.2681,169.53,169.46,4.3666]
[1717534852080,35.35,169.54,169.45,32.97102006]
[1717534852081,6.68,169.49,169.45,32.97102006]
[1717534852254,6.68,169.49,169.46,2.1833]
[1717534853685,6.68,169.49,169.47,2.1832]
[1717534853982,6.68,169.5,169.47,2.1832]
[1717534854566,6.68,169.49,169.47,2.1832]
[1717534854872,6.68,169.48,169.46,2.1833]
[1717534856771,6.68,169.49,169.46,2.1833]
[1717534856968,6.68,169.49,169.47,2.1832]
[1717534857167,2.1828,169.51,169.47,2.1832]
[1717534857367,6.68,169.49,169.47,2.1832]
[1717534859186,2.1832,169.47,169.45,32.97102006]
[1717534859352,6.68,169.49,169.46,2.1833]
[1717534860478,6.68,169.49,169.47,2.1832]
[1717534861576,6.68,169.5,169.47,2.1832]
[1717534865590,0.17,169.54,169.46,4.3667]
[1717534865807,8.8625,169.53,169.49,2.1829]
[1717534866577,2.1826,169.52,169.48,2.183]
[1717534866818,8.8626,169.52,169.48,2.183]
[1717534867384,6.5484,169.51,169.45,32.97102006]
[1717534867584,6.68,169.5,169.47,2.1831]
[1717534867910,6.68,169.5,169.45,43.88852006]
[1717534867911,6.68,169.5,169.48,2.1831]
[1717534868492,6.68,169.5,169.47,2.1832]
[1717534869594,6.68,169.5,169.48,2.1831]
[1717534869789,8.8628,169.51,169.48,2.1831]
[1717534870199,6.68,169.51,169.48,2.1831]
[1717534870687,6.68,169.51,169.46,4.3668]
[1717534870882,2.182,169.57,169.45,32.97102006]
[1717534871090,6.68,169.58,169.53,19.6425]
[1717534871388,2.1817,169.59,169.56,2.1821]
[1717534871621,2.1817,169.59,169.55,2.1822]
[1717534871622,6.68,169.57,169.55,2.1822]
[1717534872894,2.1817,169.59,169.55,2.1822]
[1717534873100,2.1817,169.59,169.56,2.1821]
[1717534873402,6.68,169.57,169.56,2.1821]
[1717534873594,2.1817,169.59,169.56,2.1821]
[1717534873788,6.68,169.57,169.55,2.1821]
[1717534874389,6.68,169.57,169.54,2.1823]
[1717534875320,6.68,169.57,169.55,2.1822]
[1717534875890,6.1027,169.6,169.47,15.6425]
[1717534876123,2.1815,169.61,169.58,2.1818]
[1717534876294,2.1812,169.63,169.59,2.1816]
[1717534876498,2.1813,169.63,169.59,2.1816]
[1717534876703,2.1813,169.63,169.6,2.1815]
[1717534877004,6.68,169.62,169.6,2.1815]
[1717534877205,6.68,169.62,169.59,2.1816]
[1717534877595,8.8613,169.62,169.59,2.1816]
[1717534878014,8.8613,169.62,169.58,2.1817]
[1717534878227,8.8613,169.62,169.59,2.1817]
[1717534879214,8.8613,169.62,169.58,2.1818]
[1717534879723,8.8614,169.61,169.58,2.1818]
[1717534880126,6.68,169.61,169.58,2.1818]
[1717534880618,35.35,169.62,169.54,4.3645]
[1717534880923,35.35,169.62,169.56,2.1821]
[1717534880924,6.68,169.58,169.56,2.1821]
[1717534881724,6.68,169.57,169.54,2.1822]
[1717534882031,2.1819,169.58,169.54,2.1822]
[1717534882247,6.68,169.55,169.54,2.1822]
[1717534882735,6.68,169.56,169.54,2.1822]
[1717534883111,6.68,169.56,169.55,2.1822]
[1717534883740,6.68,169.56,169.54,2.1823]
[1717534883917,6.68,169.56,169.55,2.1822]
[1717534886417,6.68,169.58,169.56,2.1821]
[1717534886927,8.8617,169.59,169.55,2.1821]
[1717534887436,6.68,169.58,169.55,2.1821]
[1717534888818,8.8622,169.56,169.52,2.1825]
[1717534889040,6.68,169.55,169.52,2.1825]
[1717534889412,6.68,169.55,169.53,2.1824]
[1717534890626,6.68,169.54,169.51,2.1827]
[1717534890834,6.68,169.53,169.51,2.1827]
[1717534891719,6.68,169.53,169.47,13.0993]
[1717534891948,6.68,169.51,169.47,19.649]
[1717534892248,6.68,169.51,169.49,2.1829]
[1717534892616,6.68,169.51,169.5,2.1828]
[1717534893361,6.68,169.51,169.49,2.1829]
[1717534893722,6.68,169.51,169.47,19.649]
[1717534893723,6.68,169.51,169.5,2.1828]
[1717534896737,6.68,169.52,169.5,2.1828]
[1717534898557,6.68,169.52,169.49,2.1829]
[1717534899564,6.68,169.52,169.5,2.1828]
[1717534900335,6.68,169.51,169.48,2.183]
[1717534900665,6.68,169.51,169.49,2.183]
[1717534900841,6.68,169.5,169.49,2.183]
[1717534901645,2.1826,169.52,169.49,2.183]
[1717534901851,6.68,169.5,169.46,10.9167]
[1717534902259,6.68,169.5,169.49,2.183]
[1717534902441,6.68,169.5,169.48,2.1831]
[1717534902641,8.6551,169.52,169.47,2.1831]
[1717534902642,6.68,169.49,169.47,2.1831]
[1717534902849,6.68,169.49,169.45,8.734]
[1717534903058,6.68,169.49,169.48,2.1831]
[1717534904576,6.68,169.49,169.47,2.1832]
[1717534912689,6.68,169.49,169.44,0.0842004]
[1717534912871,6.68,169.47,169.44,0.0842004]
[1717534913187,6.68,169.47,169.45,2.1834]
[1717534913387,6.68,169.46,169.44,0.0842004]
[1717534913684,6.68,169.45,169.44,0.0842004]
[1717534914397,28.5152,169.45,169.44,0.0842004]
[1717534914564,50.5424,169.45,169.44,0.0842004]
[1717534914769,50.7124,169.45,169.44,0.0842004]
[1717534914978,55.0794,169.45,169.44,0.0842004]
[1717534915291,68.31,169.45,169.44,0.0842004]
[1717534915494,61.63,169.45,169.44,0.0842004]
[1717534915865,61.7594,169.45,169.44,0.0842004]
[1717534916172,77.7886,169.45,169.44,0.0842004]
[1717534916374,93.0733,169.45,169.44,0.0842004]
[1717534916765,113.0733,169.45,169.44,0.0842004]
[1717534917285,150.7833,169.45,169.44,0.0842004]
[1717534917781,133.1133,169.45,169.44,0.0842004]
[1717534917969,70.7124,169.45,169.44,0.0842004]
[1717534919671,70.5424,169.45,169.44,0.0842004]
[1717534919871,28.8635,169.45,169.44,0.0842004]
[1717534920074,57.5211,169.49,169.44,0.0842004]
[1717534920274,6.68,169.45,169.44,0.0842004]
[1717534920996,8.8635,169.45,169.44,0.0842004]
[1717534921596,9.0335,169.45,169.44,0.0842004]
[1717534921786,2.1837,169.44,169.4,1.7683004]
[1717534921980,6.68,169.42,169.4,1.7683004]
[1717534922175,6.68,169.41,169.38,2.1844]
[1717534922398,6.68,169.41,169.34,15.2939]
[1717534922399,6.68,169.4,169.37,2.1845]
[1717534922726,6.68,169.39,169.37,2.1845]
[1717534922893,6.68,169.39,169.36,2.1846]
[1717534923203,6.68,169.37,169.33,39.02138581]
[1717534923402,6.68,169.37,169.35,2.1847]
[1717534923598,6.68,169.38,169.33,32.99438581]
[1717534923803,6.68,169.38,169.36,2.1846]
[1717534925817,6.68,169.37,169.34,2.1848]
[1717534926113,2.1845,169.38,169.35,2.1847]
[1717534926280,6.68,169.37,169.35,2.1847]
[1717534927924,6.68,169.37,169.34,2.1848]
[1717534928232,8.8645,169.37,169.34,2.1848]
[1717534928585,8.8645,169.37,169.33,35.17938581]
[1717534928888,6.68,169.35,169.33,35.17938581]
[1717534931496,6.68,169.36,169.34,2.1849]
[1717534931706,2.1841,169.41,169.37,2.1844]
[1717534931908,8.8641,169.41,169.37,2.1844]
[1717534932926,8.8641,169.4,169.37,2.1844]
[1717534933129,37.5739,169.42,169.39,2.1842]
[1717534933442,44.2539,169.42,169.36,10.9232]
[1717534933720,6.1779,169.47,169.43,2.1837]
[1717534933721,8.3612,169.47,169.43,2.1837]
[1717534933925,2.183,169.49,169.41,6.68]
[1717534934111,2.1828,169.51,169.47,2.1832]
[1717534934293,6.68,169.49,169.47,2.1832]
[1717534934815,6.68,169.49,169.46,2.1833]
[1717534935023,6.68,169.49,169.47,2.1832]
[1717534935202,2.1826,169.52,169.45,5.55204528]
[1717534935406,15.2753,169.56,169.49,2.1829]
[1717534935407,2.1824,169.54,169.49,2.1829]
[1717534935605,51.9134,169.57,169.47,6.5497]
[1717534935815,2.1822,169.55,169.48,4.3661]
[1717534936023,35.39,169.57,169.49,2.1829]
[1717534936230,2.1827,169.51,169.46,2.1832]
[1717534936613,2.1827,169.51,169.47,2.1832]
[1717534938143,2.1826,169.52,169.48,2.1831]
[1717534939406,2.1823,169.54,169.5,2.1828]
[1717534939611,2.1823,169.55,169.51,2.1827]
[1717534940103,2.1823,169.55,169.5,2.1828]
[1717534940357,2.1825,169.53,169.49,2.1829]
[1717534942026,2.1826,169.52,169.48,2.183]
[1717534942338,2.1825,169.53,169.49,2.183]
[1717534942518,41.6288,169.53,169.44,4.3672]
[1717534942724,2.1828,169.51,169.47,2.1832]
[1717534943125,2.1828,169.51,169.44,24.3672]
[1717534943126,3.54399467,169.56,169.52,2.1825]
[1717534944246,0.17,169.55,169.52,2.1825]
[1717534945756,3.54399467,169.56,169.53,2.1824]
[1717534946345,3.54399467,169.56,169.5,4.3656]
[1717534946535,3.54399467,169.56,169.52,2.1825]
[1717534947242,3.54399467,169.56,169.53,2.1824]
[1717534947653,3.54399467,169.56,169.52,2.1825]
[1717534948144,2.1822,169.55,169.52,2.1825]
[1717534948339,41.11619467,169.56,169.48,4.366]
[1717534948533,2.1826,169.53,169.49,2.1829]
[1717534948734,1.36189467,169.56,169.49,15.2806]
[1717534948926,2.1822,169.55,169.5,4.3657]
[1717534949231,2.1822,169.55,169.52,2.1825]
[1717534949740,3.54399467,169.56,169.52,2.1825]
[1717534950329,2.1822,169.55,169.52,2.1825]
[1717534951056,2.1822,169.55,169.5,4.3657]
[1717534951251,2.1822,169.55,169.52,2.1826]
[1717534951930,2.1822,169.55,169.51,2.1826]
[1717534952349,5.72619467,169.56,169.5,2.1828]
[1717534952658,2.1824,169.54,169.51,2.1827]
[1717534953150,39.9244,169.55,169.47,6.5498]
[1717534953362,2.1825,169.53,169.47,10.9162]
[1717534953653,2.1825,169.53,169.5,2.1828]
[1717534954269,0.17,169.54,169.48,15.2814]
[1717534954559,2.1824,169.54,169.5,2.1827]
[1717534954875,2.1824,169.54,169.51,2.1827]
[1717534956769,2.1823,169.55,169.51,2.1827]
[1717534956969,2.1824,169.54,169.51,2.1827]
[1717534957136,1.36189467,169.56,169.52,2.1825]
[1717534957342,2.1822,169.55,169.52,2.1825]
[1717534958053,3.54399467,169.56,169.53,2.1824]
[1717534958360,10.22399467,169.56,169.52,2.1825]
[1717534959253,10.22399467,169.56,169.53,2.1824]
[1717534959450,3.54399467,169.56,169.5,10.9141]
[1717534959654,1.36189467,169.56,169.55,2.1822]
[1717534959856,8.4843,169.59,169.56,2.1821]
[1717534960057,51.9134,169.61,169.55,21.8216]
[1717534960245,2.1814,169.62,169.58,2.1818]
[1717534960441,2.1814,169.62,169.59,2.1817]
[1717534960674,6.68,169.61,169.59,2.1817]
[1717534961084,2.1814,169.62,169.59,2.1817]
[1717534961376,6.68,169.62,169.59,2.1817]
[1717534961542,2.1812,169.63,169.59,2.1816]
[1717534961743,8.8612,169.63,169.59,2.1816]
[1717534962055,2.1813,169.62,169.59,2.1816]
[1717534962457,8.8613,169.62,169.59,2.1816]
[1717534962657,8.8613,169.62,169.58,2.1818]
[1717534963553,8.8614,169.61,169.58,2.1818]
[1717534963746,8.8614,169.61,169.57,2.1819]
[1717534963966,6.68,169.6,169.57,2.1819]
[1717534964966,6.68,169.6,169.58,2.1818]
[1717534965479,8.8616,169.6,169.53,6.5474]
[1717534965654,6.68,169.6,169.57,2.1819]
[1717534966558,6.68,169.6,169.58,2.1818]
[1717534968694,6.68,169.6,169.57,2.1819]
[1717534968897,6.68,169.59,169.57,2.1819]
[1717534969187,6.68,169.58,169.56,2.182]
[1717534970008,6.68,169.58,169.53,10.912]
[1717534970298,6.68,169.58,169.54,4.3646]
[1717534971702,6.68,169.55,169.54,2.1823]
[1717534972510,6.68,169.56,169.55,2.1822]
[1717534972791,2.1818,169.59,169.52,6.5477]
[1717534972998,6.68,169.58,169.52,8.7303]
[1717534973175,6.68,169.58,169.53,10.9124]
[1717534973380,6.68,169.58,169.56,2.182]
[1717534974976,6.68,169.58,169.55,2.1821]
[1717534976481,8.8618,169.58,169.55,2.1821]
[1717534977581,8.8618,169.58,169.54,2.1823]
[1717534980481,2.1819,169.57,169.54,2.1823]
[1717534980807,8.8619,169.57,169.54,2.1823]
[1717534981004,6.68,169.56,169.54,2.1823]
[1717534981399,8.8621,169.56,169.53,2.1824]
[1717534981732,46.2987,169.59,169.5,8.7314]
[1717534981733,6.68,169.55,169.52,2.1825]
[1717534981893,8.8622,169.55,169.52,2.1825]
[1717534982092,2.1824,169.54,169.49,4.3658]
[1717534982291,2.1823,169.55,169.49,10.9148]
[1717534982498,6.68,169.54,169.51,2.1827]
[1717534982725,6.68,169.53,169.51,2.1827]
[1717534983622,6.68,169.53,169.52,2.1826]
[1717534984400,6.68,169.54,169.53,2.1825]
[1717534984604,6.68,169.55,169.53,2.1825]
[1717534991126,6.68,169.54,169.53,2.1825]
[1717534992329,35.39,169.58,169.53,2.1825]
[1717534992540,6.68,169.54,169.53,2.1825]
[1717534993037,6.68,169.55,169.53,2.1825]
[1717534995039,2.352,169.57,169.53,2.1825]
[1717534995328,6.68,169.55,169.53,2.1825]
[1717534996012,2.352,169.57,169.53,2.1825]
[1717534996204,6.68,169.55,169.53,2.1825]
[1717534996704,9.90789467,169.58,169.52,10.9128]
[1717534996932,1.36189467,169.58,169.55,2.1821]
[1717534997108,8.04189467,169.58,169.55,2.1821]
[1717534997537,3.54369467,169.58,169.55,2.1821]
[1717534997748,3.54369467,169.58,169.55,8.7289]
[1717534997749,1.36189467,169.58,169.55,8.7289]
[1717534998037,8.8615,169.61,169.58,2.1817]
[1717534998233,6.68,169.61,169.58,2.1817]
[1717534998435,8.8614,169.61,169.58,2.1817]
[1717534998637,8.8614,169.61,169.57,2.1819]
[1717534998831,8.8616,169.6,169.57,2.1819]
[1717534999933,6.68,169.6,169.57,2.1819]
[1717535000639,8.8616,169.6,169.57,2.1819]
[1717535001230,8.3616,169.6,169.57,2.1819]
[1717535001429,6.18,169.6,169.57,2.1819]
[1717535002628,8.3616,169.6,169.57,2.1819]
[1717535002834,6.18,169.6,169.57,2.1819]
[1717535003945,8.2642,169.63,169.6,2.1815]
[1717535004151,8.2642,169.63,169.57,10.9098]
[1717535004152,6.68,169.61,169.59,2.1816]
[1717535005050,6.68,169.61,169.58,2.1817]
[1717535005947,2.1813,169.62,169.57,4.3639]
[1717535006130,2.1813,169.62,169.58,1.18065687]
[1717535006329,6.68,169.61,169.59,2.1817]
[1717535006529,8.8614,169.61,169.58,2.1818]
[1717535008047,8.8614,169.61,169.57,2.1819]
[1717535008354,2.1814,169.61,169.58,2.1818]
[1717535008647,2.1814,169.61,169.54,15.4092]
[1717535008648,6.68,169.61,169.59,2.1816]
[1717535008857,2.1814,169.62,169.59,2.1816]
[1717535008858,8.8614,169.62,169.59,2.1816]
[1717535012532,2.1814,169.62,169.59,2.1816]
[1717535012848,8.8614,169.62,169.59,2.1816]
[1717535014660,2.1814,169.62,169.59,2.1816]
[1717535014958,2.1814,169.61,169.58,2.1817]
[1717535015171,8.8614,169.61,169.58,2.1817]
[1717535015342,8.8614,169.61,169.57,2.1819]
[1717535016256,8.8614,169.61,169.58,2.1818]
[1717535017558,35.39,169.67,169.55,6.68]
[1717535017763,6.68,169.64,169.61,2.1813]
[1717535017940,6.68,169.64,169.62,2.1813]
[1717535018531,6.68,169.64,169.61,2.1813]
[1717535018757,8.861,169.64,169.61,2.1813]
[1717535020357,6.68,169.64,169.62,2.1813]
[1717535023781,6.68,169.63,169.62,2.1813]
[1717535025456,6.68,169.63,169.61,2.1814]
[1717535025680,6.68,169.62,169.58,6.5455]
[1717535025976,6.68,169.62,169.6,2.1815]
[1717535026809,6.68,169.62,169.61,2.1814]
[1717535028311,57.1689,169.61,169.48,6.4652]
[1717535028489,2.1818,169.59,169.55,2.1821]
[1717535028791,6.68,169.57,169.56,2.182]
[1717535028993,6.68,169.58,169.56,2.182]
[1717535030524,8.3983,169.6,169.56,2.182]
[1717535030685,8.3983,169.6,169.57,2.1819]
[1717535030911,6.68,169.59,169.57,2.1819]
[1717535031921,6.68,169.59,169.54,10.9117]
[1717535031922,6.68,169.59,169.56,2.182]
[1717535032297,6.68,169.59,169.57,2.1819]
[1717535032686,6.68,169.59,169.56,2.182]
[1717535034418,8.8617,169.59,169.56,2.182]
[1717535034897,8.3983,169.6,169.56,2.182]
[1717535035205,6.68,169.59,169.56,2.182]
[1717535035521,8.3983,169.6,169.56,2.182]
[1717535035692,6.68,169.59,169.56,2.182]
[1717535036205,8.3983,169.6,169.54,10.9116]
[1717535036412,6.68,169.59,169.56,2.182]
[1717535041828,6.68,169.6,169.57,2.1819]
[1717535042216,8.8615,169.61,169.57,2.1819]
[1717535042419,2.1813,169.62,169.58,2.1818]
[1717535042627,43.6183,169.64,169.57,8.7277]
[1717535042827,6.68,169.63,169.6,2.1814]
[1717535043017,8.8611,169.64,169.61,2.1814]
[1717535043234,2.1811,169.64,169.61,2.1814]
[1717535043429,8.8611,169.64,169.61,2.1814]
[1717535043906,2.1811,169.64,169.6,2.1815]
[1717535044104,2.1811,169.64,169.61,2.1814]
[1717535044407,8.8611,169.64,169.61,2.1814]
[1717535045819,2.181,169.65,169.61,2.1814]
[1717535046036,1.36189467,169.67,169.61,8.7255]
[1717535046236,3.54259467,169.67,169.64,2.181]
[1717535046422,10.22259467,169.67,169.63,2.1811]
[1717535046920,2.1808,169.66,169.63,2.1811]
[1717535047616,2.1808,169.66,169.62,2.1812]
[1717535048147,2.1809,169.65,169.62,2.1812]
[1717535048833,8.8609,169.65,169.62,2.1812]
[1717535049411,6.68,169.65,169.62,2.1812]
[1717535050038,8.8609,169.66,169.62,2.1812]
[1717535051853,8.8609,169.66,169.63,2.1812]
[1717535052551,8.8609,169.66,169.62,2.1812]
[1717535053229,2.1809,169.65,169.62,2.1812]
[1717535054141,6.68,169.65,169.62,2.1812]
[1717535056872,6.68,169.64,169.61,2.1813]
[1717535057081,6.68,169.63,169.61,2.1813]
[1717535058378,6.68,169.63,169.62,2.1813]
[1717535058577,6.68,169.64,169.62,2.1813]
[1717535058883,6.68,169.65,169.63,2.1812]
[1717535060276,6.68,169.65,169.62,2.1812]
[1717535060768,6.68,169.65,169.63,2.1812]
[1717535061079,6.68,169.65,169.62,2.1812]
[1717535061460,8.861,169.65,169.62,2.1812]
[1717535061662,6.68,169.64,169.62,2.1812]
[1717535064793,6.68,169.64,169.63,2.1812]
[1717535070785,6.68,169.64,169.62,2.1812]
[1717535072066,6.68,169.64,169.63,2.1812]
[1717535073198,6.68,169.65,169.63,2.1812]
[1717535073904,6.68,169.65,169.62,2.1812]
[1717535075687,6.68,169.64,169.62,2.1812]
[1717535075995,6.68,169.64,169.63,2.1812]
[1717535078193,6.68,169.64,169.62,2.1812]
[1717535078570,6.68,169.64,169.61,4.3629]
[1717535078571,6.68,169.64,169.63,2.1812]
[1717535081794,6.68,169.65,169.63,2.1812]
[1717535085067,8.8609,169.65,169.62,2.1812]
[1717535085895,6.68,169.65,169.63,2.1812]
[1717535086104,41.9504,169.63,169.57,4.3638]
[1717535086407,2.1816,169.6,169.57,2.1819]
[1717535086596,8.8615,169.61,169.57,2.1819]
[1717535086803,6.68,169.59,169.58,2.1818]
[1717535088381,2.1821,169.56,169.52,2.1825]
[1717535088587,6.68,169.55,169.5,380.3]
[1717535089299,35.56,169.58,169.51,2.1826]
[1717535089300,6.68,169.54,169.51,2.1826]
[1717535089504,6.68,169.52,169.5,382.4828]
[1717535090187,6.68,169.52,169.49,2.1829]
[1717535090394,6.68,169.52,169.42,386.8467]
[1717535090395,6.68,169.51,169.46,4.3668]
[1717535090581,6.68,169.51,169.49,2.183]
[1717535091480,6.68,169.51,169.47,2.1831]
[1717535091709,6.68,169.5,169.47,2.1832]
[1717535092002,6.68,169.49,169.46,2.1833]
[1717535092374,6.68,169.47,169.45,2.1835]
[1717535092613,39.755,169.53,169.46,2.1834]
[1717535092614,2.1828,169.51,169.46,2.1834]
[1717535092778,6.68,169.49,169.47,2.1832]
[1717535093179,37.5726,169.52,169.47,2.1832]
[1717535093405,6.68,169.49,169.47,2.1832]
[1717535094494,6.68,169.49,169.46,2.1833]
[1717535094907,6.68,169.48,169.46,2.1833]
[1717535096317,6.68,169.48,169.47,2.1832]
[1717535096625,6.68,169.49,169.48,2.1831]
[1717535097121,6.68,169.5,169.47,2.1832]
[1717535100599,2.1825,169.53,169.48,2.183]
[1717535100799,6.68,169.52,169.49,2.183]
[1717535101327,2.1825,169.53,169.49,2.183]
[1717535101522,41.7402,169.56,169.5,2.1828]
[1717535101711,2.1823,169.55,169.48,17.5956]
[1717535101913,6.68,169.54,169.52,2.1826]
[1717535102113,2.1821,169.56,169.52,2.1826]
[1717535102315,6.68,169.55,169.52,2.1826]
[1717535102524,8.8622,169.55,169.51,2.1827]
[1717535102810,8.8622,169.55,169.49,6.549]
[1717535102811,6.68,169.55,169.49,10.9149]
[1717535103124,6.68,169.56,169.54,2.1823]
[1717535103828,6.68,169.56,169.53,2.1824]
[1717535110514,8.8621,169.56,169.53,2.1824]
[1717535110819,2.1827,169.52,169.48,2.183]
[1717535111025,6.68,169.5,169.44,19.6484]
[1717535111540,10.9126,169.53,169.44,19.6484]
[1717535111541,6.68,169.49,169.47,2.1832]
[1717535111843,6.68,169.5,169.48,2.1831]
[1717535116747,2.1827,169.52,169.48,2.1831]
[1717535116965,6.68,169.5,169.48,2.1831]
[1717535117148,6.68,169.51,169.49,2.183]
[1717535118349,2.1825,169.54,169.5,2.1828]
[1717535118557,6.68,169.53,169.5,2.1828]
[1717535118952,6.68,169.54,169.52,2.1825]
[1717535119147,6.68,169.55,169.52,2.1825]
[1717535119463,8.8621,169.56,169.53,2.1824]
[1717535119663,6.68,169.56,169.53,2.1824]
[1717535120049,37.5718,169.59,169.52,6.5478]
[1717535120246,2.1818,169.59,169.55,2.1821]
[1717535120440,6.68,169.57,169.55,2.1821]
[1717535120680,6.68,169.58,169.55,2.1821]
[1717535122147,8.8618,169.58,169.55,2.1821]
[1717535122937,6.68,169.57,169.53,4.3649]
[1717535123143,6.68,169.57,169.54,2.1823]
[1717535125064,6.68,169.56,169.54,2.1823]
[1717535127453,2.1818,169.58,169.54,2.1823]
[1717535127658,6.68,169.57,169.54,2.1823]
[1717535128185,6.68,169.57,169.55,2.1822]
[1717535129185,2.1818,169.59,169.55,2.1822]